bitfinex/quotes_BTCUSD_20241024
["timestamp","ask_amount","ask_price","bid_price","bid_amount"]
[1729759607737,0.74343726,66957.0,66950.0,0.00128]
[1729759607738,0.446362,66951.0,66950.0,0.00128]
[1729759607981,0.73382751,66951.0,66950.0,0.00128]
[1729759608489,0.88078921,66951.0,66950.0,0.00128]
[1729759610565,0.91687399,66951.0,66950.0,0.00128]
[1729759611743,0.77991229,66951.0,66950.0,0.00128]
[1729759611960,0.9304161,66951.0,66950.0,0.00128]
[1729759612236,1.0673778,66951.0,66950.0,0.00128]
[1729759614719,1.11168674,66951.0,66950.0,0.00128]
[1729759615158,0.85986863,66951.0,66950.0,0.00128]
[1729759615387,1.13379203,66951.0,66950.0,0.00128]
[1729759615615,1.0673778,66951.0,66950.0,0.00128]
[1729759616110,0.9969055,66951.0,66950.0,0.00128]
[1729759616341,0.9304161,66951.0,66950.0,0.00128]
[1729759616558,1.0673778,66951.0,66950.0,0.00128]
[1729759617237,2.1920161,66951.0,66950.0,0.00128]
[1729759617480,2.32893209,66951.0,66950.0,0.00128]
[1729759617907,2.19197039,66951.0,66950.0,0.00128]
[1729759619902,2.16897039,66951.0,66950.0,0.00128]
[1729759620128,2.01846658,66951.0,66950.0,0.00128]
[1729759620355,1.93066658,66951.0,66950.0,0.00128]
[1729759620594,0.92175359,66951.0,66950.0,0.00128]
[1729759620826,0.92175359,66951.0,66950.0,0.002106]
[1729759621067,0.83295814,66951.0,66950.0,0.002106]
[1729759621289,0.90916882,66951.0,66950.0,0.002106]
[1729759621717,0.52550331,66951.0,66950.0,0.002106]
[1729759621934,0.45890488,66951.0,66950.0,0.002106]
[1729759622413,0.59586658,66951.0,66950.0,0.002106]
[1729759622640,0.31372699,66951.0,66950.0,0.002106]
[1729759623131,0.29986581,66951.0,66950.0,0.002106]
[1729759623354,0.18300963,66957.0,66950.0,0.002106]
[1729759623355,0.04604793,66957.0,66950.0,0.002106]
[1729759623583,0.149359,66953.0,66950.0,0.02108627]
[1729759623806,0.16323811,66955.0,66950.0,0.15147]
[1729759624019,0.25050381,66954.0,66951.0,0.01896647]
[1729759624258,0.001652,66957.0,66952.0,0.597442]
[1729759624518,0.001652,66957.0,66956.0,0.149351]
[1729759624976,0.001652,66957.0,66956.0,0.01893374]
[1729759625277,0.30150481,66957.0,66956.0,0.01893374]
[1729759625422,0.149356,66954.0,66953.0,0.0753]
[1729759625888,0.001652,66957.0,66956.0,0.149351]
[1729759626832,0.001652,66957.0,66953.0,0.0753]
[1729759627734,0.001652,66957.0,66953.0,0.224658]
[1729759627943,0.149353,66956.0,66953.0,0.0753]
[1729759629134,0.001652,66957.0,66956.0,0.149351]
[1729759629585,0.001652,66957.0,66953.0,0.0753]
[1729759629804,0.149356,66954.0,66953.0,0.0753]
[1729759630263,0.149354,66955.0,66953.0,0.0753]
[1729759630477,0.149356,66954.0,66953.0,0.0753]
[1729759630902,0.149353,66956.0,66953.0,0.0753]
[1729759631144,0.001652,66957.0,66953.0,0.224656]
[1729759631394,0.149351,66956.0,66953.0,0.0753]
[1729759631675,0.149354,66955.0,66953.0,0.0753]
[1729759632321,0.001652,66957.0,66953.0,0.0753]
[1729759632535,0.149354,66955.0,66953.0,0.0753]
[1729759632755,0.001652,66957.0,66953.0,0.0753]
[1729759633018,0.001652,66956.0,66953.0,0.0753]
[1729759633226,0.151004,66956.0,66953.0,0.0753]
[1729759633679,0.001652,66956.0,66953.0,0.0753]
[1729759633912,0.149356,66954.0,66953.0,0.0753]
[1729759635040,0.149362,66951.0,66950.0,0.002106]
[1729759638264,0.15050381,66954.0,66950.0,0.002106]
[1729759638501,0.149358,66953.0,66950.0,0.002106]
[1729759638731,0.149362,66951.0,66950.0,0.002106]
[1729759639194,0.149359,66953.0,66950.0,0.002106]
[1729759639436,0.149362,66952.0,66950.0,0.002106]
[1729759639915,0.149362,66951.0,66950.0,0.002106]
[1729759640411,0.15050381,66954.0,66950.0,0.002106]
[1729759640637,0.149361,66952.0,66950.0,0.002106]
[1729759640871,0.149362,66951.0,66950.0,0.002106]
[1729759642410,0.149364,66951.0,66945.0,0.149374]
[1729759642624,0.149364,66951.0,66945.0,0.1369617]
[1729759643060,0.15050381,66954.0,66945.0,0.4357117]
[1729759643305,0.001652,66956.0,66949.0,0.1369617]
[1729759643541,0.001652,66956.0,66953.0,0.1369617]
[1729759643787,0.001652,66956.0,66955.0,0.149354]
[1729759645381,0.001652,66956.0,66955.0,0.231154]
[1729759645665,0.001652,66956.0,66955.0,0.24414069]
[1729759645894,0.22300853,66971.0,66957.0,0.012]
[1729759646105,0.22300853,66971.0,66957.0,0.4707107]
[1729759646563,0.22300853,66970.0,66957.0,0.75817621]
[1729759646779,0.22300853,66970.0,66969.0,0.251922]
[1729759647025,0.22300853,66970.0,66969.0,0.4706837]
[1729759647283,0.22300853,66970.0,66969.0,0.4686837]
[1729759647528,0.22300853,66979.0,66978.0,0.149302]
[1729759647988,0.149281,66988.0,66979.0,0.298597]
[1729759648215,0.22300853,66990.0,66973.0,0.298627]
[1729759648216,0.22300853,66983.0,66982.0,0.1369617]
[1729759648432,0.149278,66989.0,66983.0,0.14929]
[1729759648659,0.22300853,66990.0,66982.0,0.13994724]
[1729759648892,0.005,66993.0,66984.0,0.298578]
[1729759649126,0.005,66993.0,66988.0,0.1369617]
[1729759649127,0.15050381,66992.0,66988.0,0.1369617]
[1729759649368,0.15050381,66992.0,66984.0,0.298578]
[1729759649369,0.298528,66996.0,66991.0,0.1369617]
[1729759649370,0.005,66996.0,66991.0,0.1369617]
[1729759649633,0.303486,67005.0,66996.0,0.149261]
[1729759649634,0.149247,67003.0,66996.0,0.149261]
[1729759649893,0.149247,67003.0,66995.0,0.1369617]
[1729759649894,0.22300853,66999.0,66995.0,0.2862247]
[1729759650121,0.15050381,67002.0,66994.0,0.149266]
[1729759650122,0.149254,67000.0,66994.0,0.149266]
[1729759650353,0.15050381,67002.0,66993.0,0.00298509]
[1729759650584,0.15050381,67002.0,66995.0,0.1369617]
[1729759650816,0.29975381,67002.0,66995.0,0.2862247]
[1729759651037,0.29975381,67002.0,66996.0,0.149261]
[1729759651307,0.149254,67000.0,66995.0,0.1369617]
[1729759651535,0.005,67000.0,66995.0,0.1369617]
[1729759651996,0.005,67000.0,66995.0,0.2862247]
[1729759652252,0.154254,67000.0,66995.0,0.1369617]
[1729759652484,0.154254,67000.0,66996.0,0.01868904]
[1729759652715,0.52152253,66999.0,66988.0,0.149279]
[1729759652946,0.15050381,66999.0,66997.0,0.01868447]
[1729759653178,0.149258,66998.0,66989.0,0.35997023]
[1729759653448,0.005,67000.0,66998.0,0.01867288]
[1729759653672,0.005,67000.0,66995.0,0.2862257]
[1729759653900,0.154253,67000.0,66999.0,0.01866808]
[1729759654127,0.005,67000.0,66996.0,0.01868178]
[1729759654358,0.005,67000.0,66983.0,0.01]
[1729759654359,0.298511,66999.0,66988.0,0.14928]
[1729759654586,0.298511,66999.0,66986.0,0.149283]
[1729759654587,0.149267,66994.0,66986.0,0.149283]
[1729759654825,0.149272,66992.0,66989.0,0.01871515]
[1729759655109,0.149268,66994.0,66987.0,0.149282]
[1729759655333,0.149273,66991.0,66990.0,0.01871058]
[1729759655556,0.149273,66991.0,66984.0,0.149288]
[1729759656010,0.149276,66990.0,66985.0,0.01873342]
[1729759656453,0.149276,66990.0,66984.0,0.149288]
[1729759656683,0.14927,66993.0,66986.0,0.16801285]
[1729759656905,0.298539,66993.0,66985.0,0.01873342]
[1729759657135,0.298543,66992.0,66987.0,0.01872428]
[1729759657389,0.298539,66993.0,66982.0,0.149293]
[1729759657390,0.149279,66989.0,66986.0,0.01872885]
[1729759657660,0.149279,66989.0,66982.0,0.149293]
[1729759657881,0.149274,66991.0,66985.0,0.149285]
[1729759658098,0.149274,66991.0,66979.0,0.0818]
[1729759658099,0.0808,66996.0,66986.0,0.01872885]
[1729759658321,0.15050381,66995.0,66986.0,0.01872885]
[1729759658545,0.44903381,66995.0,66982.0,0.22300853]
[1729759658777,0.149272,66992.0,66987.0,0.01869672]
[1729759659013,0.149272,66992.0,66985.0,0.149286]
[1729759659235,0.149272,66992.0,66988.0,0.01869215]
[1729759659452,0.15050381,66995.0,66984.0,0.298578]
[1729759659679,0.149275,66991.0,66984.0,0.149288]
[1729759659930,0.149275,66991.0,66985.0,0.16799185]
[1729759660156,0.149267,66994.0,66988.0,0.149279]
[1729759660405,0.15050381,66994.0,66986.0,0.149283]
[1729759660642,0.149274,66991.0,66989.0,0.01868684]
[1729759660863,0.15050381,66994.0,66989.0,0.01868684]
[1729759661100,0.0808,66996.0,66977.0,0.002]
[1729759661101,0.22300853,66991.0,66977.0,0.1369617]
[1729759661332,0.149285,66986.0,66982.0,0.22300853]
[1729759661617,0.149285,66986.0,66981.0,0.149295]
[1729759661845,0.149285,66986.0,66983.0,0.01871425]
[1729759662070,0.15050381,66990.0,66982.0,0.01871882]
[1729759662301,0.15050381,66990.0,66986.0,0.149284]
[1729759662536,0.14927,66993.0,66987.0,0.2862427]
[1729759662761,0.005,66995.0,66987.0,0.16797698]
[1729759662762,0.149271,66992.0,66987.0,0.16797698]
[1729759663650,0.149272,66992.0,66987.0,0.01869598]
[1729759663892,0.149272,66992.0,66987.0,0.16797798]
[1729759664594,0.149272,66992.0,66987.0,0.16727798]
[1729759665522,0.005,66995.0,66987.0,0.01799598]
[1729759665759,0.14928,66988.0,66987.0,0.01799598]
[1729759665996,0.149296,66981.0,66976.0,0.149307]
[1729759666474,0.149296,66981.0,66972.0,0.0758]
[1729759666475,0.298587,66982.0,66977.0,0.01867054]
[1729759666724,0.298587,66982.0,66970.0,0.14932]
[1729759666725,0.149311,66975.0,66970.0,0.14932]
[1729759666955,0.149301,66979.0,66975.0,0.22300853]
[1729759667185,0.149303,66978.0,66971.0,0.31733395]
[1729759667419,0.149303,66978.0,66976.0,0.01867511]
[1729759667666,0.149303,66978.0,66973.0,0.149313]
[1729759667894,0.149302,66978.0,66972.0,0.149315]
[1729759668112,0.149305,66977.0,66972.0,0.149315]
[1729759668334,0.149301,66979.0,66974.0,0.149311]
[1729759668775,0.149301,66979.0,66975.0,0.01867967]
[1729759669508,0.15050381,66981.0,66977.0,0.149304]
[1729759669729,0.005,66986.0,66978.0,0.1369617]
[1729759669950,0.15050381,66985.0,66982.0,0.149293]
[1729759670188,0.15050381,66985.0,66978.0,0.1369617]
[1729759670189,0.32300853,66988.0,66978.0,0.15564654]
[1729759670420,0.15050381,66987.0,66985.0,0.149286]
[1729759670689,0.29978581,66987.0,66982.0,0.149292]
[1729759670920,0.29978581,66987.0,66986.0,0.0186483]
[1729759671152,0.298541,66993.0,66983.0,0.018662]
[1729759671383,0.298541,66993.0,66980.0,0.35997023]
[1729759671384,0.15550381,66992.0,66986.0,0.0186483]
[1729759671627,0.149282,66988.0,66982.0,0.298584]
[1729759671859,0.303547,66991.0,66987.0,0.01864373]
[1729759672079,0.149279,66989.0,66980.0,0.65856623]
[1729759672315,0.149278,66989.0,66988.0,0.01863916]
[1729759672537,0.149281,66988.0,66982.0,0.149291]
[1729759672778,0.149281,66988.0,66983.0,0.149291]
[1729759673007,0.149281,66988.0,66983.0,0.167953]
[1729759673459,0.149283,66987.0,66983.0,0.018662]
[1729759673915,0.149288,66985.0,66983.0,0.018662]
[1729759674388,0.149288,66985.0,66981.0,0.149295]
[1729759674617,0.149288,66985.0,66984.0,0.01865743]
[1729759675069,0.149288,66985.0,66978.0,0.298603]
[1729759675330,0.298565,66987.0,66984.0,0.01865743]
[1729759675331,0.149283,66987.0,66984.0,0.01865743]
[1729759675574,0.149281,66988.0,66979.0,0.31728127]
[1729759675793,0.149281,66988.0,66985.0,0.01865287]
[1729759676018,0.149281,66988.0,66983.0,0.149291]
[1729759676242,0.15550381,66990.0,66981.0,0.298592]
[1729759676243,0.15550381,66990.0,66986.0,0.0186483]
[1729759676440,0.15550381,66990.0,66981.0,0.298592]
[1729759676714,0.149281,66988.0,66987.0,0.01864373]
[1729759677024,0.30478081,66990.0,66983.0,0.298581]
[1729759677116,0.149281,66988.0,66987.0,0.01864373]
[1729759677338,0.149281,66988.0,66983.0,0.149291]
[1729759677570,0.45405681,66990.0,66987.0,0.01864373]
[1729759677571,0.005,66990.0,66987.0,0.01864373]
[1729759677798,0.154273,66991.0,66987.0,0.22300853]
[1729759678020,0.154273,66991.0,66986.0,0.149284]
[1729759678021,0.005,66994.0,66988.0,0.01863916]
[1729759678242,0.149271,66992.0,66988.0,0.16791916]
[1729759678469,0.149271,66992.0,66988.0,0.14928]
[1729759678688,0.005,66991.0,66989.0,0.0186346]
[1729759678915,0.154274,66991.0,66986.0,0.149283]
[1729759679140,0.154274,66991.0,66990.0,0.01863003]
[1729759679394,0.154269,66993.0,66985.0,0.298572]
[1729759679618,0.005,66993.0,66989.0,0.149277]
[1729759679842,0.005,66993.0,66986.0,0.298569]
[1729759679843,0.15427,66993.0,66988.0,0.14928]
[1729759680066,0.15550381,66994.0,66990.0,0.16790403]
[1729759680287,0.005,66993.0,66989.0,0.0186346]
[1729759680508,0.149272,66992.0,66991.0,0.01862546]
[1729759680755,0.149272,66992.0,66990.0,0.01863003]
[1729759680950,0.149272,66992.0,66991.0,0.01862546]
[1729759681395,0.02229012,66993.0,66989.0,0.149278]
[1729759681616,0.15050381,66994.0,66991.0,0.16789846]
[1729759681843,0.02229012,66995.0,66990.0,0.15559173]
[1729759682088,0.14926,66997.0,66993.0,0.2862287]
[1729759682319,0.303513,66999.0,66993.0,0.149267]
[1729759682544,0.303513,66999.0,66989.0,0.4355167]
[1729759682545,0.005,66999.0,66994.0,0.01859343]
[1729759682766,0.149262,66996.0,66994.0,0.01859343]
[1729759682989,0.29852,66997.0,66985.0,0.0818]
[1729759683245,0.1419617,66995.0,66982.0,0.298584]
[1729759683487,0.149281,66988.0,66986.0,0.22300853]
[1729759683706,0.298552,66990.0,66982.0,0.149292]
[1729759683707,0.149286,66986.0,66982.0,0.149292]
[1729759683927,0.149286,66986.0,66981.0,0.149295]
[1729759684164,0.29856,66988.0,66979.0,0.149299]
[1729759684384,0.149288,66985.0,66979.0,0.298601]
[1729759684661,0.149292,66983.0,66978.0,0.149301]
[1729759684890,0.14929,66984.0,66979.0,0.149299]
[1729759685101,0.149289,66984.0,66979.0,0.149299]
[1729759685320,0.298574,66985.0,66979.0,0.149299]
[1729759685539,0.149291,66983.0,66979.0,0.149299]
[1729759686254,0.149292,66983.0,66977.0,0.149304]
[1729759686479,0.005,66984.0,66968.0,0.082624]
[1729759686699,0.298587,66982.0,66972.0,0.298632]
[1729759686924,0.298593,66981.0,66974.0,0.14931]
[1729759687151,0.298593,66981.0,66973.0,0.149312]
[1729759687152,0.149303,66978.0,66973.0,0.149312]
[1729759687368,0.149309,66976.0,66971.0,0.149318]
[1729759687587,0.14931,66975.0,66971.0,0.149318]
[1729759687791,0.15050381,66981.0,66968.0,0.000824]
[1729759688086,0.149312,66974.0,66970.0,0.14932]
[1729759688308,0.149319,66971.0,66968.0,0.000824]
[1729759688539,0.298622,66975.0,66968.0,0.000824]
[1729759688756,0.44912581,66975.0,66968.0,0.150149]
[1729759688973,0.149319,66971.0,66968.0,0.000824]
[1729759689192,0.149314,66973.0,66968.0,0.000824]
[1729759689414,0.15050381,66975.0,66968.0,0.000824]
[1729759689657,0.149314,66973.0,66968.0,0.150148]
[1729759689926,0.149314,66973.0,66969.0,0.149322]
[1729759690150,0.14932,66970.0,66969.0,0.01870597]
[1729759690373,0.29982381,66970.0,66969.0,0.01870597]
[1729759690587,0.149322,66969.0,66968.0,0.000824]
[1729759690803,0.29982581,66969.0,66968.0,0.000824]
[1729759691731,0.38302581,66969.0,66968.0,0.000824]
[1729759692183,0.1042,66972.0,66968.0,0.000824]
[1729759692407,0.005,66975.0,66974.0,0.149311]
[1729759692625,0.005,66975.0,66969.0,0.4543474]
[1729759692837,0.005,66975.0,66974.0,0.01871785]
[1729759693060,0.005,66974.0,66970.0,0.298641]
[1729759693278,0.005,66974.0,66971.0,0.149317]
[1729759694392,0.005,66973.0,66971.0,0.149317]
[1729759694591,0.15050381,66979.0,66973.0,0.149312]
[1729759694592,0.005,66976.0,66973.0,0.149312]
[1729759694811,0.15050381,66976.0,66969.0,0.000824]
[1729759695071,0.30481081,66976.0,66972.0,0.149314]
[1729759695301,0.15050381,66976.0,66972.0,0.149314]
[1729759695526,0.15050381,66976.0,66973.0,0.149312]
[1729759695755,0.15050381,66976.0,66971.0,0.298632]
[1729759696224,0.15050381,66976.0,66973.0,0.149312]
[1729759696437,0.005,66978.0,66975.0,0.149307]
[1729759697161,0.005,66976.0,66973.0,0.149312]
[1729759697398,0.005,66975.0,66973.0,0.149312]
[1729759697641,0.005,66975.0,66970.0,0.298641]
[1729759697864,0.005,66975.0,66972.0,0.149315]
[1729759698486,0.005,66975.0,66969.0,0.000824]
[1729759698747,0.149312,66974.0,66969.0,0.150144]
[1729759699010,0.15431,66975.0,66971.0,0.149317]
[1729759699233,0.149318,66971.0,66970.0,0.01873613]
[1729759699455,0.149316,66972.0,66969.0,0.000824]
[1729759699674,0.29981781,66973.0,66969.0,0.150145]
[1729759699895,0.149316,66972.0,66969.0,0.000824]
[1729759700352,0.15050381,66973.0,66972.0,0.149316]
[1729759700589,0.005,66976.0,66973.0,0.149313]
[1729759700794,0.15050381,66976.0,66973.0,0.149313]
[1729759701003,0.005,66978.0,66969.0,0.1377857]
[1729759701253,0.005,66980.0,66977.0,0.149304]
[1729759701523,0.005,66978.0,66971.0,0.298636]
[1729759701739,0.30480481,66979.0,66973.0,0.298627]
[1729759701963,0.005,66980.0,66973.0,0.298627]
[1729759702205,0.005,66981.0,66978.0,0.1369617]
[1729759702441,0.22300853,66986.0,66978.0,0.1369617]
[1729759702664,0.22300853,66986.0,66985.0,0.149287]
[1729759703107,0.154276,66990.0,66985.0,0.149287]
[1729759703339,0.0992,66995.0,66978.0,0.1369617]
[1729759703340,0.005,66988.0,66978.0,0.1369617]
[1729759703573,0.005,66988.0,66980.0,0.298596]
[1729759703812,0.005,66988.0,66978.0,0.1369617]
[1729759703813,0.005,66988.0,66984.0,0.149288]
[1729759704048,0.005,66988.0,66983.0,0.298583]
[1729759704272,0.005,66988.0,66978.0,0.1369617]
[1729759704711,0.005,66988.0,66979.0,0.298601]
[1729759704945,0.005,66988.0,66985.0,0.149285]
[1729759705198,0.005,66988.0,66983.0,0.298583]
[1729759705199,0.22800853,66990.0,66986.0,0.149283]
[1729759705448,0.005,66989.0,66982.0,0.1369617]
[1729759705663,0.149277,66990.0,66985.0,0.149286]
[1729759705916,0.0749,66988.0,66986.0,0.149284]
[1729759706133,0.0749,66988.0,66983.0,0.298583]
[1729759706365,0.0749,66988.0,66987.0,0.149282]
[1729759706635,0.001648,66987.0,66986.0,0.149284]
[1729759711109,0.001648,66987.0,66986.0,0.29123114]
[1729759711321,0.001648,66987.0,66986.0,0.2932457]
[1729759712486,0.001648,66987.0,66986.0,0.2912457]
[1729759713181,0.001648,66987.0,66986.0,0.2932457]
[1729759713611,0.001648,66987.0,66986.0,0.31187962]
[1729759714381,0.001648,66987.0,66986.0,0.31687962]
[1729759719430,0.001648,66987.0,66986.0,0.31770362]
[1729759720343,0.001648,66987.0,66986.0,0.31570362]
[1729759721721,0.001648,66987.0,66986.0,0.31770362]
[1729759729373,0.001648,66987.0,66986.0,0.46820743]
[1729759735799,0.001648,66987.0,66986.0,0.16874192]
[1729759748232,0.001648,66987.0,66986.0,0.30570362]
[1729759751201,0.001648,66987.0,66986.0,0.60516913]
[1729759751438,0.001648,66987.0,66986.0,0.79846913]
[1729759751665,0.001648,66987.0,66986.0,0.87906913]
[1729759751889,0.001648,66987.0,66986.0,0.92568295]
[1729759752159,0.001648,66999.0,66998.0,0.239858]
[1729759752401,0.001648,66999.0,66998.0,0.241858]
[1729759752595,0.001648,66999.0,66998.0,0.26068066]
[1729759753840,0.001648,66999.0,66998.0,0.41118447]
[1729759756889,0.001648,66999.0,66998.0,0.51118447]
[1729759758026,0.001648,66999.0,66998.0,0.51694126]
[1729759768449,0.001648,66999.0,66998.0,0.60882877]
[1729759778736,0.001648,66999.0,66998.0,0.43434126]
[1729759778960,0.001648,66999.0,66998.0,0.16808066]
[1729759779214,0.101148,66999.0,66998.0,0.16808066]
[1729759779699,0.178748,66999.0,66998.0,0.16808066]
[1729759785632,0.178748,66999.0,66998.0,0.01882266]
[1729759786320,0.178748,66999.0,66995.0,0.149264]
[1729759786536,0.178748,66999.0,66998.0,0.01858656]
[1729759786753,0.178748,66999.0,66995.0,0.149264]
[1729759786972,0.178748,66999.0,66998.0,0.01858656]
[1729759787231,0.178748,66999.0,66993.0,0.149268]
[1729759787232,0.14926,66997.0,66993.0,0.149268]
[1729759787423,0.1771,66996.0,66994.0,0.149266]
[1729759787891,0.1771,66996.0,66995.0,0.149264]
[1729759788113,0.1771,66996.0,66992.0,0.149271]
[1729759788339,0.1771,66995.0,66990.0,0.0057501]
[1729759788608,0.1771,66994.0,66991.0,0.298547]
[1729759788840,0.1771,66994.0,66993.0,0.149269]
[1729759789080,0.17585,66994.0,66993.0,0.149269]
[1729759789301,0.17585,66994.0,66993.0,0.01860939]
[1729759789525,0.325117,66994.0,66993.0,0.01860939]
[1729759789776,0.248772,66992.0,66988.0,0.000824]
[1729759790008,0.0995,66991.0,66989.0,0.149277]
[1729759790246,0.0995,66991.0,66988.0,0.150102]
[1729759790484,0.0995,66991.0,66989.0,0.149277]
[1729759790948,0.0995,66991.0,66990.0,0.149276]
[1729759791709,0.0995,66991.0,66988.0,0.000824]
[1729759791933,0.0995,66991.0,66990.0,0.149276]
[1729759792148,0.1771,66991.0,66990.0,0.149276]
[1729759794007,0.005,66993.0,66988.0,0.09569699]
[1729759794243,0.005,66993.0,66992.0,0.24115851]
[1729759794690,0.005,66993.0,66992.0,0.53969751]
[1729759795164,0.005,66993.0,66992.0,0.39042651]
[1729759795384,0.005,66993.0,66992.0,0.53969751]
[1729759795820,0.005,66993.0,66992.0,0.39042651]
[1729759796036,0.005,66993.0,66992.0,0.53969751]
[1729759796466,0.0776,66996.0,66992.0,0.39042651]
[1729759796699,0.005,66993.0,66992.0,0.39042651]
[1729759796922,0.0776,66996.0,66992.0,0.39042651]
[1729759797153,0.005,66993.0,66992.0,0.39042651]
[1729759797385,0.005,66993.0,66992.0,0.53969751]
[1729759798291,0.005,66993.0,66992.0,0.44781]
[1729759798742,0.005,66993.0,66992.0,0.149271]
[1729759800350,0.005,66995.0,66991.0,0.298547]
[1729759800579,0.005,66993.0,66992.0,0.149271]
[1729759800801,0.0776,66996.0,66995.0,0.149264]
[1729759801057,0.0995,66997.0,66996.0,0.149262]
[1729759803738,0.0995,66997.0,66996.0,0.1678747]
[1729759803975,0.001648,66999.0,66998.0,0.149258]
[1729759804472,0.001648,66999.0,66998.0,0.25974907]
[1729759804698,0.001648,66999.0,66998.0,0.4827576]
[1729759804961,0.001648,66999.0,66998.0,0.25974907]
[1729759805212,0.001648,66999.0,66998.0,0.26773376]
[1729759805440,0.001648,66999.0,66998.0,0.25974907]
[1729759805679,0.001648,66999.0,66998.0,0.16786156]
[1729759805925,0.169748,66999.0,66998.0,0.01860356]
[1729759806401,0.169748,66999.0,66994.0,0.29853]
[1729759806640,0.319004,66999.0,66998.0,0.01859025]
[1729759806874,0.319004,66999.0,66997.0,0.149259]
[1729759806875,0.169748,66999.0,66997.0,0.149259]
[1729759807090,0.174748,66999.0,66998.0,0.01859025]
[1729759807327,0.324003,66999.0,66998.0,0.01859025]
[1729759807542,0.005,66996.0,66993.0,0.149267]
[1729759807761,0.005,66996.0,66994.0,0.149266]
[1729759808032,0.005,66996.0,66994.0,0.16787451]
[1729759808481,0.005,66996.0,66995.0,0.149264]
[1729759808914,0.005,66996.0,66995.0,0.16786795]
[1729759810475,0.005,66996.0,66995.0,0.01860395]
[1729759812093,0.006648,66996.0,66995.0,0.01860395]
[1729759812537,0.006648,66996.0,66995.0,0.16786795]
[1729759814118,0.006648,66996.0,66995.0,0.01860395]
[1729759814774,0.006648,66996.0,66993.0,0.149267]
[1729759814992,0.005,66995.0,66993.0,0.149268]
[1729759815222,0.005,66995.0,66992.0,0.149271]
[1729759815439,0.005,66995.0,66991.0,0.299368]
[1729759815687,0.005,66995.0,66994.0,0.149267]
[1729759815936,0.005,66995.0,66991.0,0.299368]
[1729759816158,0.005,66995.0,66994.0,0.149267]
[1729759818862,0.005,66995.0,66994.0,0.16787355]
[1729759819333,0.005,66995.0,66994.0,0.46640655]
[1729759819816,0.001648,66996.0,66995.0,0.149264]
[1729759820057,0.006648,66996.0,66995.0,0.149264]
[1729759820280,0.006648,66996.0,66995.0,0.16786598]
[1729759822142,0.001648,66996.0,66995.0,0.16786598]
[1729759823509,0.001648,66996.0,66995.0,0.01860198]
[1729759823759,0.001648,66996.0,66995.0,0.16786598]
[1729759823999,0.001648,66996.0,66995.0,0.149264]
[1729759824223,0.001648,66996.0,66995.0,0.16786535]
[1729759825172,0.001648,66996.0,66995.0,0.01860135]
[1729759825398,0.006648,66996.0,66995.0,0.01860135]
[1729759825613,0.005,66995.0,66994.0,0.149265]
[1729759829746,0.005,66995.0,66991.0,0.299368]
[1729759829976,0.005,66992.0,66991.0,0.000824]
[1729759830198,0.324771,66992.0,66991.0,0.000824]
[1729759830416,0.47527481,66992.0,66991.0,0.000824]
[1729759831298,0.63971004,66992.0,66991.0,0.000824]
[1729759831579,0.63973228,66992.0,66991.0,0.000824]
[1729759831816,0.63970398,66992.0,66991.0,0.000824]
[1729759832277,1.00515557,66992.0,66991.0,0.000824]
[1729759832514,1.19895664,66992.0,66991.0,0.000824]
[1729759832734,1.06530181,66992.0,66991.0,0.000824]
[1729759832973,1.19884921,66992.0,66991.0,0.000824]
[1729759833982,1.06530181,66992.0,66991.0,0.000824]
[1729759835912,0.97647301,66992.0,66991.0,0.000824]
[1729759836121,1.12574401,66992.0,66991.0,0.000824]
[1729759836579,1.01457281,66992.0,66991.0,0.000824]
[1729759838192,1.01419471,66992.0,66991.0,0.000824]
[1729759840173,1.15128873,66992.0,66991.0,0.000824]
[1729759840388,1.15328873,66992.0,66991.0,0.000824]
[1729759840839,1.01419471,66992.0,66991.0,0.000824]
[1729759841999,1.15128873,66992.0,66991.0,0.000824]
[1729759842439,1.01419471,66992.0,66991.0,0.000824]
[1729759842664,1.01619471,66992.0,66991.0,0.000824]
[1729759843142,1.01419471,66992.0,66991.0,0.000824]
[1729759843574,0.91670137,66992.0,66991.0,0.000824]
[1729759845976,1.01388997,66992.0,66991.0,0.000824]
[1729759847515,1.10259071,66992.0,66991.0,0.000824]
[1729759847726,1.10255967,66992.0,66991.0,0.000824]
[1729759848356,1.10455967,66992.0,66991.0,0.000824]
[1729759848827,1.10255967,66992.0,66991.0,0.000824]
[1729759849065,1.24165369,66992.0,66991.0,0.000824]
[1729759849274,1.10255967,66992.0,66991.0,0.000824]
[1729759851758,0.96546565,66992.0,66991.0,0.000824]
[1729759851980,0.81496184,66992.0,66991.0,0.000824]
[1729759852202,0.76614069,66992.0,66991.0,0.000824]
[1729759852626,0.76614054,66992.0,66991.0,0.000824]
[1729759854020,0.69963983,66992.0,66991.0,0.000824]
[1729759854453,0.91021199,66992.0,66991.0,0.000824]
[1729759854658,1.0607158,66992.0,66991.0,0.000824]
[1729759854861,1.14937231,66992.0,66991.0,0.000824]
[1729759855710,1.0607158,66992.0,66991.0,0.000824]
[1729759855904,1.0627158,66992.0,66991.0,0.000824]
[1729759856326,1.0627158,66992.0,66988.0,0.000824]
[1729759856327,0.02,66989.0,66988.0,0.000824]
[1729759856567,0.94805267,66989.0,66988.0,0.000824]
[1729759856774,1.02303742,66989.0,66988.0,0.000824]
[1729759857031,1.13385326,66989.0,66988.0,0.000824]
[1729759857481,1.13383018,66989.0,66988.0,0.000824]
[1729759860522,2.39543018,66989.0,66988.0,0.000824]
[1729759861003,2.28461798,66989.0,66988.0,0.000824]
[1729759861695,2.39542804,66989.0,66988.0,0.000824]
[1729759861918,2.12990985,66989.0,66988.0,0.000824]
[1729759862170,2.11111417,66989.0,66988.0,0.000824]
[1729759863264,2.13411417,66989.0,66988.0,0.000824]
[1729759863531,2.24492423,66989.0,66988.0,0.000824]
[1729759865333,2.24500289,66989.0,66988.0,0.000824]
[1729759865574,2.3955067,66989.0,66988.0,0.000824]